bitfinex/quotes_BTCUSD_20250529
["timestamp","ask_amount","ask_price","bid_price","bid_amount"]
[1748529095235,0.89849058,106910.0,106900.0,0.09130921]
[1748529095445,0.90299663,106910.0,106900.0,0.09130921]
[1748529095894,0.53644509,106900.0,106890.0,4.03e-05]
[1748529096136,0.78072121,106900.0,106890.0,4.03e-05]
[1748529096358,0.86922107,106900.0,106890.0,4.03e-05]
[1748529096570,0.77276578,106900.0,106890.0,4.03e-05]
[1748529096792,0.63631445,106900.0,106890.0,4.03e-05]
[1748529097010,0.64277659,106900.0,106890.0,0.0642403]
[1748529097221,0.64831445,106900.0,106890.0,0.0642403]
[1748529097472,0.64831445,106900.0,106890.0,4.03e-05]
[1748529097731,1.15897544,106900.0,106890.0,4.03e-05]
[1748529097927,1.18191315,106900.0,106890.0,4.03e-05]
[1748529098148,0.76483682,106900.0,106890.0,4.03e-05]
[1748529098369,1.02669456,106900.0,106890.0,4.03e-05]
[1748529098573,1.09028198,106900.0,106890.0,4.03e-05]
[1748529098785,1.2182953,106900.0,106890.0,4.03e-05]
[1748529098996,0.9028553,106900.0,106890.0,4.03e-05]
[1748529099214,1.32726733,106900.0,106890.0,4.03e-05]
[1748529099436,1.32080652,106900.0,106890.0,4.03e-05]
[1748529099657,1.32726735,106900.0,106890.0,4.03e-05]
[1748529099881,1.32172805,106900.0,106890.0,4.03e-05]
[1748529100092,1.36212726,106900.0,106890.0,4.03e-05]
[1748529100527,1.42573318,106900.0,106890.0,4.03e-05]
[1748529100745,1.41927253,106900.0,106890.0,4.03e-05]
[1748529100990,1.42573304,106900.0,106890.0,4.03e-05]
[1748529101201,1.44737253,106900.0,106890.0,4.03e-05]
[1748529101421,1.45383333,106900.0,106890.0,4.03e-05]
[1748529102332,1.53694801,106900.0,106890.0,4.03e-05]
[1748529102597,0.55100432,106890.0,106880.0,0.03569979]
[1748529102823,0.69691418,106890.0,106880.0,0.03569979]
[1748529103296,0.70339228,106890.0,106880.0,0.03569979]
[1748529103555,0.69691418,106890.0,106880.0,0.03569979]
[1748529103989,0.70591418,106890.0,106880.0,0.03569979]
[1748529104204,0.71591418,106890.0,106880.0,0.03569979]
[1748529104652,1.04119418,106890.0,106880.0,0.03569979]
[1748529105305,0.99511954,106890.0,106880.0,0.03569979]
[1748529105524,0.65533869,106890.0,106880.0,0.03569979]
[1748529105743,0.65533869,106890.0,106880.0,0.06789979]
[1748529105963,0.65533869,106890.0,106880.0,0.09999979]
[1748529106407,0.67298704,106890.0,106880.0,0.03569979]
[1748529106631,0.77432155,106890.0,106880.0,0.03569979]
[1748529107069,0.74785193,106890.0,106880.0,0.06789979]
[1748529107526,1.07953224,106890.0,106880.0,0.09999979]
[1748529107744,0.6618213,106890.0,106880.0,0.09999979]
[1748529107981,0.98698141,106890.0,106880.0,0.09999979]
[1748529108187,0.98698182,106890.0,106880.0,0.09999979]
[1748529108403,0.65534071,106890.0,106880.0,0.09999979]
[1748529108614,0.98050071,106890.0,106880.0,0.09999979]
[1748529108830,0.88944676,106890.0,106880.0,0.09999979]
[1748529109067,0.89592874,106890.0,106880.0,0.09999979]
[1748529109287,0.90411532,106890.0,106880.0,0.09999979]
[1748529109489,0.57899532,106890.0,106880.0,0.09999979]
[1748529109944,0.25002906,106890.0,106880.0,0.1100038]
[1748529110179,0.24744428,106890.0,106880.0,0.1100038]
[1748529110447,0.24744428,106890.0,106880.0,0.2206038]
[1748529110448,0.21546347,106890.0,106880.0,0.2206038]
[1748529110682,0.24641672,106890.0,106880.0,0.2206038]
[1748529110898,0.59076256,106890.0,106880.0,0.09999979]
[1748529111112,0.58181399,106890.0,106880.0,0.09999979]
[1748529111326,0.57281399,106890.0,106880.0,0.09999979]
[1748529111539,0.55632978,106890.0,106880.0,0.09999979]
[1748529111996,0.56532978,106890.0,106880.0,0.1100038]
[1748529112208,0.58003834,106890.0,106880.0,0.1100038]
[1748529112460,0.58003834,106890.0,106880.0,0.09999979]
[1748529112908,0.58803834,106890.0,106880.0,0.09999979]
[1748529113152,0.81803834,106890.0,106880.0,0.09999979]
[1748529114051,0.80332978,106890.0,106880.0,0.09999979]
[1748529114281,0.80332978,106890.0,106880.0,0.1100038]
[1748529114983,0.80332978,106890.0,106880.0,0.03569979]
[1748529115205,0.89805545,106890.0,106880.0,0.09939979]
[1748529115429,0.8070015,106890.0,106880.0,0.09939979]
[1748529115689,0.82803655,106890.0,106880.0,0.09939979]
[1748529115886,0.82803655,106890.0,106880.0,0.1093438]
[1748529116369,0.24441672,106890.0,106880.0,0.1093438]
[1748529116629,0.03516902,106900.0,106880.0,0.20139775]
[1748529116896,0.02516875,106900.0,106890.0,0.1767384]
[1748529117133,0.57096811,106900.0,106890.0,0.34112205]
[1748529117350,0.37452311,106900.0,106890.0,0.3533245]
[1748529117588,0.22161384,106900.0,106890.0,0.3533245]
[1748529117837,0.56261384,106900.0,106890.0,0.3533245]
[1748529118084,0.56461384,106900.0,106890.0,0.3533245]
[1748529118296,0.55326001,106900.0,106890.0,0.3533245]
[1748529118510,0.56261445,106900.0,106890.0,0.3533245]
[1748529118726,0.37752372,106900.0,106890.0,0.3533245]
[1748529118944,0.57396898,106900.0,106890.0,0.3533245]
[1748529119167,0.57396898,106900.0,106890.0,0.33878365]
[1748529119168,0.55526053,106900.0,106890.0,0.33878365]
[1748529119484,0.53646347,106890.0,106880.0,0.03669979]
[1748529119881,0.87221088,106890.0,106880.0,0.06689979]
[1748529120093,0.86118347,106890.0,106880.0,0.0767938]
[1748529120316,0.54646347,106890.0,106880.0,0.0767938]
[1748529120545,0.54646347,106890.0,106880.0,0.1067938]
[1748529120761,0.54846347,106890.0,106880.0,0.1167938]
[1748529120955,0.55258725,106890.0,106880.0,0.20784775]
[1748529123088,0.54046347,106890.0,106880.0,0.20784775]
[1748529123589,0.55258725,106890.0,106880.0,0.20784775]
[1748529125588,0.56258725,106890.0,106880.0,0.20784775]
[1748529126276,0.55258725,106890.0,106880.0,8.23792626]
[1748529126694,0.56258725,106890.0,106880.0,8.23792626]
[1748529127155,0.55258725,106890.0,106880.0,8.23792626]
[1748529128028,0.54046347,106890.0,106880.0,8.23792626]
[1748529128239,0.54981861,106890.0,106880.0,8.23792626]
[1748529128486,0.54981861,106890.0,106880.0,8.25246711]
[1748529128748,0.004,106890.0,106880.0,8.25246711]
[1748529128956,0.01335462,106890.0,106880.0,8.25246711]
[1748529129173,0.03206429,106890.0,106880.0,8.25246711]
[1748529129388,0.0414197,106890.0,106880.0,8.25246711]
[1748529129623,0.20981853,106890.0,106880.0,8.36306711]
[1748529129911,0.54981853,106890.0,106880.0,8.34852626]
[1748529130803,0.54981853,106890.0,106880.0,8.23792626]
[1748529131027,0.57194231,106890.0,106880.0,8.34788626]
[1748529131234,0.57194231,106890.0,106880.0,8.23792626]
[1748529132311,0.56194231,106890.0,106880.0,8.34788626]
[1748529132727,0.54981853,106890.0,106880.0,8.34788626]
[1748529133373,0.54981853,106890.0,106880.0,8.68666711]
[1748529133622,0.01335479,106890.0,106880.0,8.68666711]
[1748529133832,0.03206464,106890.0,106880.0,8.68666711]
[1748529134048,0.0227095,106890.0,106880.0,8.68666711]
[1748529134722,0.20981774,106890.0,106880.0,8.23792626]
[1748529134938,0.20981844,106890.0,106880.0,8.23792626]
[1748529135579,0.20046347,106890.0,106880.0,8.23792626]
[1748529136008,0.19110824,106890.0,106880.0,8.23792626]
[1748529137334,0.19110824,106890.0,106880.0,8.25246711]
[1748529139742,0.19110824,106890.0,106880.0,8.23792626]
[1748529140515,0.19110824,106890.0,106880.0,8.25246711]
[1748529140778,0.01335497,106890.0,106880.0,8.57642711]
[1748529140980,0.04141988,106890.0,106880.0,8.57642711]
[1748529141195,0.22852812,106890.0,106880.0,8.57642711]
[1748529141852,0.56852812,106890.0,106880.0,8.57642711]
[1748529142091,0.54981862,106890.0,106880.0,8.57642711]
[1748529143432,0.54046356,106890.0,106880.0,8.57642711]
[1748529144129,0.20046356,106890.0,106880.0,8.25246711]
[1748529144357,0.54046356,106890.0,106880.0,8.17672626]
[1748529144563,0.54928089,106890.0,106880.0,8.17672626]
[1748529146153,0.54928842,106890.0,106880.0,8.17672626]
[1748529147897,0.54928842,106890.0,106880.0,8.21002626]
[1748529148318,0.54928842,106890.0,106880.0,8.24292626]
[1748529148875,0.54928842,106890.0,106880.0,8.56660626]
[1748529149377,0.54928842,106890.0,106880.0,8.31998626]
[1748529149584,0.54928842,106890.0,106880.0,8.28668626]
[1748529150476,0.54928842,106890.0,106880.0,8.35188626]
[1748529151778,0.54046356,106890.0,106880.0,8.35188626]
[1748529151990,0.54046356,106890.0,106880.0,8.36642711]
[1748529151991,0.20929016,106890.0,106880.0,8.36642711]
[1748529152217,0.21917341,106890.0,106880.0,8.36642711]
[1748529153264,0.20981862,106890.0,106880.0,8.36642711]
[1748529153495,0.20981862,106890.0,106880.0,8.24192626]
[1748529153701,0.20981862,106890.0,106880.0,8.64598626]
[1748529153933,0.20981862,106890.0,106880.0,8.96950626]
[1748529154601,0.20981862,106890.0,106880.0,8.98701657]
[1748529154855,0.004,106890.0,106880.0,8.98404711]
[1748529155111,0.20795459,106910.0,106900.0,0.07834085]
[1748529155328,0.19691919,106910.0,106900.0,0.63192259]
[1748529155538,0.2057456,106910.0,106900.0,0.30848377]
[1748529155754,0.19691919,106910.0,106900.0,0.30848377]
[1748529155976,0.20574546,106910.0,106900.0,0.30847091]
[1748529156196,0.18756597,106910.0,106900.0,0.30847119]
[1748529156404,0.18956597,106910.0,106900.0,0.29997651]
[1748529157052,0.18956597,106910.0,106900.0,0.31747344]
[1748529157257,0.18956597,106910.0,106900.0,0.29997651]
[1748529157467,0.18956597,106910.0,106900.0,0.31747312]
[1748529157708,0.00249202,106910.0,106900.0,0.31747312]
[1748529157938,0.00349202,106910.0,106900.0,0.77350934]
[1748529159069,0.00149202,106910.0,106900.0,1.10528357]
[1748529159299,0.02855133,106910.0,106900.0,1.03591312]
[1748529159511,0.02955133,106910.0,106900.0,1.06940852]
[1748529159732,0.03155133,106910.0,106900.0,1.06691312]
[1748529159969,0.03155133,106910.0,106900.0,0.22951312]
[1748529160205,0.20927204,106910.0,106900.0,0.18320928]
[1748529160469,0.20927204,106910.0,106900.0,0.15117227]
[1748529160704,0.59009344,106910.0,106900.0,0.15117227]
[1748529160961,0.57021722,106910.0,106900.0,0.15117227]
[1748529161209,0.55809344,106910.0,106900.0,0.15117227]
[1748529161424,0.57021722,106910.0,106900.0,0.15117227]
[1748529161872,0.57021722,106910.0,106900.0,0.16867091]
[1748529162128,0.57021722,106910.0,106900.0,0.44527227]
[1748529162569,0.57021197,106910.0,106900.0,0.44527227]
[1748529163004,0.57021197,106910.0,106900.0,0.46277812]
[1748529163226,0.57021197,106910.0,106900.0,0.44527227]
[1748529164091,0.57021197,106910.0,106900.0,0.54085939]
[1748529164306,0.35284506,106910.0,106900.0,0.54085824]
[1748529164517,0.01284506,106910.0,106900.0,0.54085707]
[1748529164749,0.01284506,106910.0,106900.0,0.5408567]
[1748529164971,0.00349202,106910.0,106900.0,0.55831782]
[1748529165198,0.01284489,106910.0,106900.0,0.58619404]
[1748529165405,0.01284489,106910.0,106900.0,0.58619303]
[1748529165620,0.01284489,106910.0,106900.0,0.58619299]
[1748529165857,0.00349202,106910.0,106900.0,0.58619299]
[1748529166071,0.01284489,106910.0,106900.0,0.58619299]
[1748529166505,0.00349202,106910.0,106900.0,0.56871169]
[1748529166724,0.00349202,106910.0,106900.0,0.58617401]
[1748529166927,0.01284489,106910.0,106900.0,0.58617401]
[1748529167395,0.20927213,106910.0,106900.0,0.57957092]
[1748529167619,0.19991882,106910.0,106900.0,0.57957281]
[1748529167832,0.19991882,106910.0,106900.0,0.64457269]
[1748529168050,0.20927213,106910.0,106900.0,0.64457269]
[1748529168283,0.21862579,106910.0,106900.0,0.65911809]
[1748529168754,0.21862579,106910.0,106900.0,0.36501812]
[1748529168973,0.20927248,106910.0,106900.0,0.36501812]
[1748529169190,0.20927248,106910.0,106900.0,0.31535547]
[1748529169413,0.20927248,106910.0,106900.0,0.6229063]
[1748529170336,0.20927248,106910.0,106900.0,0.62292107]
[1748529170578,0.20927248,106910.0,106900.0,0.62292106]
[1748529170826,0.20927248,106910.0,106900.0,0.62288106]
[1748529171065,0.20927248,106910.0,106900.0,0.68738074]
[1748529171560,0.20927248,106910.0,106900.0,0.68740125]
[1748529171824,0.20927248,106910.0,106900.0,0.66989547]
[1748529172036,0.20927248,106910.0,106900.0,0.68740117]
[1748529172273,0.02219925,106910.0,106900.0,0.68740117]
[1748529172517,0.02219881,106910.0,106900.0,0.68740117]
[1748529172729,0.22797865,106910.0,106900.0,0.68740356]
[1748529172945,0.22797865,106910.0,106900.0,0.66989547]
[1748529173188,0.00349202,106910.0,106900.0,0.6874034]
[1748529173451,0.20927143,106910.0,106900.0,0.22119462]
[1748529173690,0.21862534,106910.0,106900.0,0.28255547]
[1748529174177,0.21862534,106910.0,106900.0,0.34505547]
[1748529174413,0.0221982,106910.0,106900.0,0.34505547]
[1748529174637,0.0315515,106910.0,106900.0,0.34505547]
[1748529174870,0.00349202,106910.0,106900.0,0.34505547]
[1748529175081,0.02219802,106910.0,106900.0,0.38293169]
[1748529175334,0.00349202,106910.0,106900.0,0.40043855]
[1748529175568,0.00349202,106910.0,106900.0,0.40043828]
[1748529175827,0.00349202,106910.0,106900.0,0.38293169]
[1748529176074,0.02219802,106910.0,106900.0,0.38293169]
[1748529176292,0.02219802,106910.0,106900.0,0.40043821]
[1748529176510,0.02219802,106910.0,106900.0,0.38293169]
[1748529176719,0.21862517,106910.0,106900.0,0.70549169]
[1748529177424,0.01284506,106910.0,106900.0,0.70549169]
[1748529177628,0.01284506,106910.0,106900.0,0.72299879]
[1748529177629,0.00349202,106910.0,106900.0,0.72299879]
[1748529177839,0.00349202,106910.0,106900.0,0.70549169]
[1748529178048,0.01284498,106910.0,106900.0,0.70549169]
[1748529178293,0.02219811,106910.0,106900.0,0.70549169]
[1748529178505,0.20927212,106910.0,106900.0,0.67491169]
[1748529178939,0.20927212,106910.0,106900.0,0.69241948]
[1748529179162,0.20927212,106910.0,106900.0,0.67491169]
[1748529179393,0.26511873,106910.0,106900.0,0.45279462]
[1748529179624,0.61511873,106910.0,106900.0,0.15869462]
[1748529179840,0.61511873,106910.0,106900.0,0.17620546]
[1748529179841,0.62392798,106910.0,106900.0,0.17620546]
[1748529180104,0.62392798,106910.0,106900.0,0.28548594]
[1748529180372,0.63605176,106910.0,106900.0,0.26797462]
[1748529180598,0.62605176,106910.0,106900.0,0.06764067]
[1748529180845,0.62605176,106910.0,106900.0,0.08515326]
[1748529181096,0.62605176,106910.0,106900.0,0.06764067]
[1748529181322,0.62405176,106910.0,106900.0,0.05264067]
[1748529181547,0.62304804,106910.0,106900.0,0.03664067]
[1748529181805,0.62304804,106910.0,106900.0,0.05064067]
[1748529182990,0.93332426,106910.0,106900.0,0.04901896]
[1748529183428,0.94803282,106910.0,106900.0,0.04901896]
[1748529184549,0.94803282,106910.0,106900.0,0.03501896]
[1748529185051,0.95003282,106910.0,106900.0,0.03501896]
[1748529185512,0.93922729,106910.0,106900.0,0.03501896]
[1748529185726,0.95901939,106910.0,106900.0,0.03501896]
[1748529186257,0.63961939,106910.0,106900.0,0.03501896]
[1748529186517,0.958319,106910.0,106900.0,0.03501896]
[1748529186749,0.296039,106910.0,106900.0,0.12607291]
[1748529186994,0.19991873,106910.0,106900.0,0.1386842]
[1748529187223,0.53991873,106910.0,106900.0,0.1386842]
[1748529187460,0.55204251,106910.0,106900.0,0.1386842]
[1748529187723,0.24114251,106910.0,106900.0,0.1386842]
[1748529187956,0.63063877,106910.0,106900.0,0.1386842]
[1748529188191,0.63063877,106910.0,106900.0,0.1446842]
[1748529188434,0.63063877,106910.0,106900.0,0.1506842]
[1748529189139,0.55783877,106910.0,106900.0,0.1506842]
[1748529189363,0.54571499,106910.0,106900.0,0.1506842]
[1748529189596,0.55783877,106910.0,106900.0,0.1506842]
[1748529189830,0.54571499,106910.0,106900.0,0.1506842]
[1748529190076,0.53691873,106910.0,106900.0,0.15302254]
[1748529190316,0.53691873,106910.0,106900.0,0.1837842]
[1748529190558,0.53691873,106910.0,106900.0,0.21722243]
[1748529190831,0.01919872,106910.0,106900.0,0.52352505]
[1748529191142,0.01919872,106910.0,106900.0,0.56140127]
[1748529191143,0.00049202,106910.0,106900.0,0.56140127]
[1748529191324,0.00646717,106920.0,106910.0,0.11511707]
[1748529191548,0.00646717,106920.0,106910.0,0.43727707]
[1748529191783,0.00646717,106920.0,106910.0,0.58577523]
[1748529192033,0.00646717,106920.0,106910.0,0.87987523]
[1748529192289,0.20287508,106920.0,106910.0,0.87987523]
[1748529192483,0.21222742,106920.0,106910.0,0.88887523]
[1748529192726,0.22157986,106920.0,106910.0,0.99751523]
[1748529192953,0.23093255,106920.0,106910.0,0.99747523]
[1748529193164,0.23093255,106920.0,106910.0,1.00547523]
[1748529193378,0.22157986,106920.0,106910.0,1.00547523]
[1748529193814,0.23093247,106920.0,106910.0,1.00547523]
[1748529194045,0.19352291,106920.0,106910.0,1.00547523]
[1748529194268,0.01581925,106920.0,106910.0,1.00547523]
[1748529194493,0.00646717,106920.0,106910.0,1.00047523]
[1748529194735,0.00646717,106920.0,106910.0,1.34047523]
[1748529195666,0.00646717,106920.0,106910.0,1.34035523]
[1748529195667,0.02517142,106920.0,106910.0,1.34035523]
[1748529195895,0.01581916,106920.0,106910.0,0.56971523]
[1748529196113,0.19352291,106920.0,106910.0,1.00031523]
[1748529196361,0.00646717,106920.0,106910.0,1.00031523]
[1748529196841,0.20287508,106920.0,106910.0,1.00027523]
[1748529197050,0.19352291,106920.0,106910.0,1.00027523]
[1748529197276,0.21222716,106920.0,106910.0,1.00027523]
[1748529197501,0.2028749,106920.0,106910.0,1.00027523]
[1748529197727,0.21222707,106920.0,106910.0,1.00027523]
[1748529197972,0.2028749,106920.0,106910.0,1.00027523]
[1748529198187,0.00646717,106920.0,106910.0,1.00027523]
[1748529201197,0.2057424,106930.0,106910.0,0.31961168]
[1748529201418,0.22446555,106920.0,106910.0,0.31073773]
[1748529201635,0.22446555,106920.0,106910.0,0.72351168]
[1748529201636,0.21511338,106920.0,106910.0,0.72351168]
[1748529201858,0.21511338,106920.0,106910.0,0.40179168]
[1748529201859,0.20576069,106920.0,106910.0,0.40179168]
[1748529202075,0.20576069,106920.0,106910.0,0.7928879]
[1748529202289,0.21511338,106920.0,106910.0,0.75501168]
[1748529202510,0.21511338,106920.0,106910.0,0.72351168]
[1748529203198,0.20576095,106920.0,106910.0,0.36159168]
[1748529203428,0.20576095,106920.0,106910.0,0.58681816]
[1748529203653,0.20576095,106920.0,106910.0,0.59481816]
[1748529204338,0.20576095,106920.0,106910.0,0.58681816]
[1748529204554,0.23696095,106920.0,106910.0,0.16453816]
[1748529204763,0.23696095,106920.0,106910.0,0.53733395]
[1748529204979,0.23696095,106920.0,106910.0,0.21573395]
[1748529205447,0.23696095,106920.0,106910.0,0.10709395]
[1748529205448,0.61766095,106920.0,106910.0,0.10709395]
[1748529205957,0.61766095,106920.0,106910.0,0.09909395]
[1748529206204,0.61978473,106920.0,106910.0,0.13163533]
[1748529206418,0.61978473,106920.0,106910.0,0.03258138]
[1748529206419,0.83766095,106920.0,106910.0,0.03258138]
[1748529206920,0.83766095,106920.0,106910.0,0.01304]
[1748529208304,0.84644755,106920.0,106910.0,0.01304]
[1748529208763,0.8574308,106920.0,106910.0,0.01304]
[1748529208978,0.8574308,106920.0,106910.0,0.00604]
[1748529209677,0.84644755,106920.0,106910.0,0.00604]
[1748529209884,0.85978473,106920.0,106910.0,0.09109395]
[1748529210100,0.85978473,106920.0,106910.0,0.1037102]
[1748529210575,0.9287149,106920.0,106910.0,4e-05]
[1748529210808,0.9375015,106920.0,106910.0,4e-05]
[1748529211036,0.84644755,106920.0,106910.0,0.00104]
[1748529211236,0.85743224,106920.0,106910.0,0.00204]
[1748529213278,1.17883224,106920.0,106910.0,0.00204]
[1748529213492,1.16784819,106920.0,106910.0,0.00204]
[1748529214408,1.17883224,106920.0,106910.0,0.00204]
[1748529214887,1.36239741,106920.0,106910.0,0.00204]
[1748529215123,1.28454663,106920.0,106910.0,0.00204]
[1748529215346,1.28454663,106920.0,106900.0,0.03506853]
[1748529215347,0.61576756,106910.0,106900.0,0.03506853]
[1748529215613,0.74125456,106910.0,106900.0,0.03506853]
[1748529215838,0.71572834,106910.0,106900.0,0.03506853]
[1748529216729,1.03704834,106910.0,106900.0,0.03506853]
[1748529216959,1.03704834,106910.0,106900.0,0.03606853]
[1748529217419,1.07514434,106910.0,106900.0,0.03706853]
[1748529219011,0.76480008,106910.0,106900.0,0.03706853]
[1748529219241,0.31908569,106910.0,106900.0,0.03706853]
[1748529219494,0.20642671,106910.0,106900.0,0.12812248]
[1748529219925,0.20642671,106910.0,106900.0,0.15204057]
[1748529220150,0.54642671,106910.0,106900.0,0.15204057]
[1748529220595,0.20642671,106910.0,106900.0,0.15204057]
[1748529221052,0.54642671,106910.0,106900.0,0.15204057]
[1748529221710,0.55855049,106910.0,106900.0,0.15204057]
[1748529221945,0.54642671,106910.0,106900.0,0.15204057]
[1748529222824,0.56855049,106910.0,106900.0,0.15204057]
[1748529223052,0.55642671,106910.0,106900.0,0.15204057]
[1748529223302,0.55642671,106910.0,106900.0,0.15437894]
[1748529223518,0.56855049,106910.0,106900.0,0.1543789]
[1748529224390,0.56855049,106910.0,106900.0,0.15204057]
[1748529226643,0.55642671,106910.0,106900.0,0.15204057]
[1748529226857,0.56855049,106910.0,106900.0,0.15204057]
[1748529227360,0.55642671,106910.0,106900.0,0.15204057]
[1748529227569,0.55642671,106910.0,106900.0,0.1543789]
[1748529227784,0.55642671,106910.0,106900.0,0.44614057]
[1748529228013,0.61722671,106910.0,106900.0,0.41007204]
[1748529228450,5.94155347,106890.0,106880.0,6.77781181]
[1748529228610,5.94155347,106890.0,106880.0,5.84585856]
[1748529228611,6.99611764,106890.0,106880.0,5.84585856]
[1748529228777,6.99611764,106890.0,106880.0,3.57726094]
[1748529228778,7.18746952,106890.0,106880.0,3.57726094]
[1748529229034,7.18746952,106890.0,106880.0,0.98984133]
[1748529229035,7.77339458,106890.0,106880.0,0.98984133]
[1748529229275,0.76873108,106870.0,106860.0,8.6571164]
[1748529229397,6.08364988,106870.0,106860.0,2.24480868]
[1748529229622,6.08364988,106870.0,106840.0,8.03e-05]
[1748529229623,5.92516856,106850.0,106840.0,7.60269233]
[1748529229877,5.92516856,106850.0,106840.0,4.55546025]
[1748529229878,6.38896786,106850.0,106840.0,4.55546025]
[1748529230147,6.56353151,106850.0,106840.0,0.19239704]
[1748529230372,5.90017306,106820.0,106810.0,8.81756743]
[1748529230672,6.81507029,106820.0,106810.0,8.81756743]
[1748529230943,6.97222315,106820.0,106810.0,8.79256633]
[1748529231183,7.01076665,106820.0,106810.0,8.74679707]
[1748529231429,6.97306538,106820.0,106810.0,8.74679707]
[1748529231647,6.9443256,106820.0,106810.0,8.72279707]
[1748529231882,7.22051228,106820.0,106810.0,8.72279707]
[1748529232120,7.67327228,106820.0,106810.0,8.72379707]
[1748529232373,7.64409556,106820.0,106810.0,8.6990531]
[1748529232619,7.64409556,106820.0,106810.0,8.67472649]
[1748529233263,7.31949556,106820.0,106810.0,8.63224564]
[1748529233484,7.64425556,106820.0,106810.0,8.63224564]
[1748529233938,7.69218023,106820.0,106810.0,8.63224564]
[1748529234146,7.69214023,106820.0,106810.0,8.63224564]
[1748529234361,7.36742023,106820.0,106810.0,8.63224564]
[1748529234566,7.69198023,106820.0,106810.0,8.63224564]
[1748529234806,7.25926023,106820.0,106810.0,8.63224564]
[1748529235007,7.66301556,106820.0,106810.0,8.63224564]
[1748529235656,7.64517523,106820.0,106810.0,8.61027939]
[1748529236336,7.79143751,106820.0,106810.0,8.61027939]
[1748529236510,7.81251284,106820.0,106810.0,8.49571538]
[1748529237197,7.81251284,106820.0,106810.0,8.49041538]
[1748529237457,7.84128408,106820.0,106810.0,8.49041538]
[1748529237888,7.79128408,106820.0,106810.0,8.49041538]
[1748529238112,7.79128408,106820.0,106810.0,8.48018993]
[1748529238336,7.7912182,106820.0,106810.0,8.48018993]
[1748529238628,7.8412182,106820.0,106810.0,8.48018993]
[1748529238835,7.8412182,106820.0,106810.0,8.44644799]
[1748529239077,7.8060522,106820.0,106810.0,8.38189787]
[1748529239312,7.79891705,106820.0,106810.0,8.22689065]
[1748529239518,7.84891705,106820.0,106810.0,8.18449912]
[1748529239756,7.79891705,106820.0,106810.0,8.12829912]
[1748529239969,7.79891705,106820.0,106810.0,8.11076978]
[1748529240203,7.79891705,106820.0,106810.0,8.11080978]
[1748529240418,7.79859705,106820.0,106810.0,8.11080978]
[1748529240626,7.7621322,106820.0,106810.0,8.05460978]
[1748529240844,7.8119722,106820.0,106810.0,8.05460978]
[1748529241052,7.76194673,106820.0,106810.0,8.03168909]
[1748529241286,7.76194673,106820.0,106810.0,7.99087473]
[1748529241287,6.91140588,106820.0,106810.0,7.99087473]
[1748529241515,7.34213074,106820.0,106810.0,7.99087473]
[1748529241743,7.82377074,106820.0,106810.0,7.99087473]
[1748529242432,7.80958801,106820.0,106810.0,7.92103234]
[1748529242628,7.83830501,106820.0,106810.0,7.91583234]
[1748529242874,7.40666501,106820.0,106810.0,7.91583234]
[1748529243078,7.46490501,106820.0,106810.0,7.91583234]
[1748529243289,7.40666501,106820.0,106810.0,7.91583234]
[1748529243500,7.78878501,106820.0,106810.0,7.91583234]
[1748529243723,7.95954501,106820.0,106810.0,7.91583234]
[1748529243924,7.82254801,106820.0,106810.0,7.88758664]
[1748529244141,8.25454801,106820.0,106810.0,7.8650944]
[1748529244363,8.33326501,106820.0,106810.0,7.8646084]
[1748529244579,8.28326501,106820.0,106810.0,7.8646084]
[1748529245065,7.82681063,106820.0,106810.0,7.8646084]
[1748529245308,8.25845063,106820.0,106810.0,7.8641224]
[1748529245499,8.25833063,106820.0,106810.0,7.8641224]
[1748529245945,7.82681063,106820.0,106810.0,7.8641224]
[1748529246141,7.80753985,106820.0,106810.0,7.8641224]
[1748529246364,8.23889985,106820.0,106810.0,7.8641224]
[1748529247201,8.25968804,106820.0,106810.0,7.8641224]
[1748529248303,8.25968732,106820.0,106810.0,7.8641224]
[1748529248604,7.47384732,106820.0,106810.0,7.8590224]
[1748529248756,7.0158555,106820.0,106810.0,7.8590224]
[1748529248968,7.6781755,106820.0,106810.0,7.8590224]
[1748529249213,7.73710341,106820.0,106810.0,7.79076679]
[1748529249412,7.75164426,106820.0,106810.0,7.79076679]
[1748529249862,7.75140426,106820.0,106810.0,7.79076679]
[1748529250291,7.73029607,106820.0,106810.0,7.79076679]
[1748529250493,7.28548126,106820.0,106810.0,7.74578407]
[1748529250715,7.25676426,106820.0,106810.0,7.74578407]
[1748529250934,7.25676426,106820.0,106810.0,7.67951127]
[1748529251141,7.41197426,106820.0,106810.0,7.67951127]
[1748529251367,7.50907426,106820.0,106810.0,7.67951127]
[1748529251866,7.39092911,106820.0,106810.0,7.67531127]
[1748529252087,7.39096346,106820.0,106810.0,7.67531127]
[1748529252311,7.39096346,106820.0,106810.0,7.61457564]
[1748529252969,7.39096346,106820.0,106810.0,7.61067564]
[1748529253187,7.35449861,106820.0,106810.0,7.61067564]
[1748529253396,7.03197861,106820.0,106810.0,7.61067564]
[1748529253617,7.39016346,106820.0,106810.0,7.61067564]
[1748529254113,6.96004346,106820.0,106810.0,7.61067564]
[1748529254310,6.96004346,106820.0,106810.0,7.61023824]
[1748529254311,7.39008346,106820.0,106810.0,7.61023824]
[1748529254555,7.39008346,106820.0,106810.0,7.58617535]
[1748529254556,7.35361861,106820.0,106810.0,7.58617535]
[1748529254781,7.34781861,106820.0,106810.0,7.58617535]
[1748529255204,7.3618704,106820.0,106810.0,7.58573795]
[1748529255425,7.3682704,106820.0,106810.0,7.58573795]
[1748529255657,7.3682704,106820.0,106810.0,7.56376686]
[1748529256282,6.99446086,106820.0,106810.0,7.56376686]
[1748529256514,7.42450086,106820.0,106810.0,7.44005087]
[1748529256737,7.08832001,106820.0,106810.0,7.44005087]
[1748529257175,7.38889182,106820.0,106810.0,7.44005087]
[1748529257387,7.40343267,106820.0,106810.0,7.43611427]
[1748529258275,7.42450086,106820.0,106810.0,7.43611427]
[1748529258716,7.42450086,106820.0,106810.0,7.40237241]
[1748529258938,7.42450086,106820.0,106810.0,7.37412421]
[1748529259153,7.42450086,106820.0,106810.0,7.35163041]
[1748529259383,7.42510086,106820.0,106810.0,7.31710418]
[1748529259830,7.42450086,106820.0,106810.0,7.31710418]
[1748529260041,7.34721504,106820.0,106810.0,7.31710418]
[1748529260301,7.2495794,106820.0,106810.0,7.31710418]
[1748529260488,7.25621452,106820.0,106810.0,7.31710418]
[1748529260701,7.35465452,106820.0,106810.0,7.31710418]
[1748529260943,7.33358633,106820.0,106810.0,7.31710418]
[1748529261378,7.34812718,106820.0,106810.0,7.31710418]
[1748529261622,7.36919537,106820.0,106810.0,7.31710418]
[1748529261840,7.34812718,106820.0,106810.0,7.31710418]
[1748529262068,7.34812718,106820.0,106810.0,7.31702518]
[1748529262326,7.47596537,106820.0,106810.0,7.21684409]
[1748529262528,7.47596537,106820.0,106810.0,7.05936558]
[1748529262751,7.46956537,106820.0,106810.0,7.05936558]
[1748529262962,7.54307307,106820.0,106810.0,7.05936558]
[1748529263433,7.54307307,106820.0,106810.0,7.05542898]
[1748529263434,7.52407307,106820.0,106810.0,7.05542898]
[1748529263671,7.45056537,106820.0,106810.0,7.05542898]
[1748529263893,7.47256537,106820.0,106810.0,7.03316891]
[1748529264102,7.45149718,106820.0,106810.0,7.03316891]
[1748529264310,7.45637367,106820.0,106810.0,6.9544304]
[1748529264530,7.43637367,106820.0,106810.0,6.9534304]